Cogmind - Beta 17 @@@ ROGUE MODE // 2026.06.28 @ 15:36:07 Player: Cracklepappy Result: Destroyed by S-27 Virus with Autogun Performance ------------- Evolutions (4) 2000 Regions Visited (23) 4600 Robots Destroyed (402) 2010 Value Destroyed (21498) 21498 Prototype IDs (20) 400 Alien Tech Used (0) 0 Bonus (38427) 38427 TOTAL SCORE: 68935 Bonus ------- High Alert Combat Kills 7318 Follower Combat Kills 1706 Prayed to X0-1V1 5000 Major X0-1V1 Interference 20100 Subatomizer Sterilization 3000 Entered Garrisons 1600 Friendly Fire -297 Cogmind --------- Core Integrity 0/980 Matter 280/800 Energy 37/100 System Corruption 12% Temperature Cool (0) Movement Core (50) Location -6/Garrison Parts ------- > --- POWER (2) -------- (None) > --- PROPULSION (4) --- (None) > --- UTILITY (5) ------ Advanced Heat Sink (fused) Enhanced Optical Array Improved Salvage Targeting Computer X0-1V1's Piety Tracker > --- WEAPON (4) ------- (None) > --- INVENTORY (6) ---- Matter Compressor (0) Launcher Loader Heavy Plasma Cannon Improved Plasma Cutter Peak State ------------ > --- POWER ------------ Micro Fission Core > --- PROPULSION ------- Improved VTOL Module Improved Cesium-ion Thruster Improved Cesium-ion Thruster Cooled VTOL Module > --- UTILITY ---------- Improved Heat Sink X0-1V1's Piety Tracker > --- WEAPON ----------- Heavy Assault Rifle Minigun Minigun Gauss Rifle KE Penetrator > --- INVENTORY -------- Medium Storage Unit Matter Compressor Long-range Missile Launcher Improved Plasma Cutter Power Sword [Rating: 61] Favorites ----------- Power Improved Ion Engine Engine Improved Ion Engine Power Core Light Nuclear Core Propulsion Light Treads Treads Light Treads Leg Aluminum Leg Wheel Compact Wheel Hover Unit Gravmag System Flight Unit Flight Unit Utility X0-1V1's Piety Tracker Device X0-1V1's Piety Tracker Storage Medium Storage Unit Processor Improved Targeting Computer Protection Improved Core Shielding Weapon Autogun Energy Gun Particle Gun Energy Cannon Proton Cannon Ballistic Gun Autogun Ballistic Cannon Improved Light Cannon Launcher Long-range Missile Launcher Special Weapon Plasma Cutter Impact Weapon Heavy Mace Slashing Weapon Power Sword Piercing Weapon Makeshift Spear Special Melee Weapon Improved Datajack Build | -11 -10 -10 -9 -9 -9 -8 -8 -8 -8 -7 -7 -7 -7 -7 -7 -7 -7 -7 -7 -6 -6 -6 -6 ------- Run | Yrd Mat Min Mat Sto Gar Mat Gar Mat Gar Fac Was Fac Gar Fac Gar Fac Gar Fac Gar Fac Was Fac Gar Slots Evolved 8 | . . . 2 . . 2 . . . 2 . . . . . . . . . 2 . . . Power . | . . . . . . . . . . . . . . . . . . . . . . . . Propulsion 3 | . . . 1 . . 1 . . . 1 . . . . . . . . . . . . . Utility 2 | . . . . . . . . . . . . . . . . . . . . 2 . . . Weapon 3 | . . . 1 . . 1 . . . 1 . . . . . . . . . . . . . Parts Attached 319 | 5 15 3 23 23 13 2 41 10 23 1 . . 37 16 25 4 19 15 13 3 . 22 6 Power 50 | . 2 1 4 5 5 . 5 1 3 1 . . 8 1 5 1 5 . 1 1 . 1 . Engine 24 | . 2 1 4 5 4 . 4 1 1 . . . 1 . . . . . . . . 1 . Core 26 | . . . . . 1 . 1 . 2 1 . . 7 1 5 1 5 . 1 1 . . . Reactor . | . . . . . . . . . . . . . . . . . . . . . . . . Propulsion 84 | 2 4 1 7 6 3 1 13 3 8 . . . 10 8 1 . 4 3 2 . . 7 1 Treads 16 | 2 . . . 2 . . 9 1 . . . . . . . . . . . . . 2 . Leg 5 | . . . . . . . 4 . . . . . . . . . . . . . . 1 . Wheel 4 | . . . . . . . . 1 . . . . . . . . . . . . . 3 . Hover 8 | . . . . 1 . . . 1 4 . . . . 1 . . . . . . . 1 . Flight 51 | . 4 1 7 3 3 1 . . 4 . . . 10 7 1 . 4 3 2 . . . 1 Utility 58 | 1 4 1 2 2 . 1 5 3 3 . . . 5 5 3 1 3 5 4 1 . 6 3 Device 36 | 1 1 1 2 1 . . 3 1 3 . . . 4 3 2 1 2 4 2 1 . 1 3 Storage 11 | . 2 . . 1 . 1 2 1 . . . . . 1 1 . 1 . 1 . . . . Processor 8 | . . . . . . . . 1 . . . . . 1 . . . 1 1 . . 4 . Hackware . | . . . . . . . . . . . . . . . . . . . . . . . . Protection 3 | . 1 . . . . . . . . . . . 1 . . . . . . . . 1 . Artifact . | . . . . . . . . . . . . . . . . . . . . . . . . Weapon 127 | 2 5 . 10 10 5 . 18 3 9 . . . 14 2 16 2 7 7 6 1 . 8 2 Energy Gun 9 | . 1 . . . . . 7 . . . . . . . . . . . . . . 1 . Energy Cannon 3 | . . . . . . . . . . . . . . . . . . . . . . 1 2 Ballistic Gun 93 | 2 2 . 8 8 5 . 7 1 6 . . . 14 1 14 2 7 7 5 1 . 3 . Ballistic Cannon 4 | . 1 . . 2 . . . 1 . . . . . . . . . . . . . . . Launcher 5 | . . . 1 . . . 1 . 1 . . . . 1 . . . . . . . 1 . Special Weapon 3 | . . . . . . . 1 . . . . . . . 1 . . . 1 . . . . Impact Weapon 2 | . 1 . . . . . . . . . . . . . . . . . . . . 1 . Slashing Weapon 6 | . . . 1 . . . 2 1 . . . . . . 1 . . . . . . 1 . Piercing Weapon 1 | . . . . . . . . . 1 . . . . . . . . . . . . . . Special Melee Weapon 1 | . . . . . . . . . 1 . . . . . . . . . . . . . . Unidentified Prototypes 17 | . . 1 3 . . . . 2 . . . . 1 7 . 1 1 1 . . . . . Parts Lost 106 | . . . 6 2 1 3 15 1 12 . . . 15 1 2 . 8 . 16 3 . 14 7 Power 10 | . . . . . 1 1 . . 2 . . . 1 . . . 1 . 2 . . 2 . Propulsion 44 | . . . 4 2 . 1 5 1 4 . . . 8 1 . . 4 . 5 . . 6 3 Utility 8 | . . . 1 . . 1 . . . . . . 1 . . . . . 2 1 . 1 1 Weapon 44 | . . . 1 . . . 10 . 6 . . . 5 . 2 . 3 . 7 2 . 5 3 Highest Loss Streak 11 | . . . 2 2 1 3 5 1 11 . . . 7 1 1 . 3 . 7 2 . 7 6 To Critical Strikes . | . . . . . . . . . . . . . . . . . . . . . . . . Average Backups 7 | 2 6 7 5 5 6 5 10 19 10 9 10 10 5 5 5 6 6 6 5 4 6 8 7 Power . | 1 . . . . . . 1 1 . 1 1 1 . . . . . . . . . . . Propulsion . | . 1 1 . . . . . 5 1 1 1 1 . . . 2 1 . . . . . . Utility 3 | . 2 4 2 2 2 3 4 6 3 3 4 5 2 2 1 1 2 2 2 2 2 2 3 Weapon 2 | . 2 2 2 2 3 1 2 4 2 2 2 2 1 2 1 1 2 2 1 1 3 4 2 Tool/Special . | . . . . . . . . . . . . . . . . . . . . . . . . Unused Backups 99 | . 25 2 4 1 1 . 6 14 7 . 1 . 7 4 11 1 4 6 . . . . 5 Power 10 | . 5 . . . . . 1 1 2 . . . 1 . . . . . . . . . . Propulsion 20 | . . . 2 . . . . 2 . . . . 3 . 5 . 2 6 . . . . . Utility 34 | . 8 . . . . . 3 5 4 . 1 . 3 . 4 1 1 . . . . . 4 Weapon 35 | . 12 2 2 1 1 . 2 6 1 . . . . 4 2 . 1 . . . . . 1 Tool/Special . | . . . . . . . . . . . . . . . . . . . . . . . . Average Slot Usage (%) 84 | . 89 100 88 96 91 88 88 92 85 91 92 92 81 79 90 92 80 84 53 65 36 70 46 Engine 6 | . 11 14 8 11 9 8 12 18 7 . . . . . . . . . . . . 2 . Core 2 | . . . . . . . . . 2 6 7 7 6 2 6 7 6 7 1 2 6 3 . Treads 6 | . 9 . . . . . 27 23 1 . . . . . . . . . . . . 9 3 Flight 21 | . 18 28 25 35 38 35 1 . 18 30 30 30 28 27 36 38 30 29 18 13 13 2 . Device 11 | . 13 14 21 21 16 11 10 1 12 15 15 15 14 7 6 7 5 6 7 11 6 1 3 Storage 4 | . 11 14 . . 5 6 7 9 8 7 7 7 . . . . 1 . . . . 4 3 Processor 1 | . . . . . . . . 7 . . . . . 5 . . . . 4 6 6 16 15 Energy Gun 1 | . . . . . . . 7 . . . . . . . . . . . . . . 1 . Ballistic Gun 20 | . 14 28 31 19 12 9 12 22 20 16 15 15 26 25 33 30 28 30 16 16 1 8 3 Ballistic Cannon 1 | . 7 . . 6 6 8 . 3 . . . . . . . . . . . . . . . Slashing Weapon 2 | . . . . . 2 9 4 . 1 . . . . . . 7 5 7 1 . . 3 . Peak Build Rating 61 | 5 12 19 32 34 35 37 37 40 47 38 39 39 45 46 51 48 51 54 61 60 28 47 51 Average Rating 33 | 3 7 12 25 30 31 34 30 34 32 37 38 39 35 34 45 47 42 49 37 48 23 37 32 On Entrance 32 | . 4 12 12 32 31 34 21 36 34 32 38 39 39 39 46 48 48 46 51 42 29 23 32 Avg Prop Armor Cover (%) 15 | 27 24 . . 7 . . 16 13 13 . . . . 4 . . . . 15 11 . 15 18 Naked Turns . | . . . . . . . . . . . . . . . . . . . . . . . . Heaviest Build 70 | 3 14 12 13 17 17 20 66 70 67 27 25 25 32 28 23 23 31 22 22 27 7 40 30 Greatest Support 80 | 3 40 14 21 46 21 27 80 80 36 27 27 27 28 28 27 27 27 23 22 30 10 40 16 Greatest Overweight (x) 3 | . 3 . 1 . 1 . 3 2 2 . . . 3 2 1 . 1 . 2 . . 2 1 Average Overweight (x) . | . . . . . . . . 1 . . . . . . . . . . . . . . . Largest Inventory Capacity 21 | 5 10 9 9 9 9 9 21 21 21 11 11 11 11 11 6 6 11 11 6 6 6 11 11 Average Capacity 8 | 5 7 9 6 6 7 8 12 21 11 11 11 11 6 6 6 6 6 6 6 6 6 9 9 Most Carried 21 | 5 8 9 8 9 9 8 21 21 21 11 11 11 11 11 6 6 11 10 6 6 6 11 11 Average Carried 8 | 2 7 8 5 6 7 6 11 20 11 10 10 11 5 6 5 5 6 5 5 4 5 8 7 Final Capacity 21 | 5 8 9 6 9 6 9 21 21 11 11 11 11 11 6 6 6 11 6 6 6 6 11 6 Final Carried 21 | 5 8 9 6 9 6 8 21 21 11 11 11 11 11 6 6 6 11 6 6 6 6 10 5 Class Distribution -------------------- 30% | Scavenger-Sprinter 20% | Scavenger-Gunner 16% | Sprinter 14% | Scavenger-Mutant 7% | Mutant 4% | Scavenger-Skirmisher 4% | Gunner Dominant Class ---------------- Scavenger-Mutant | -10/Materials Scavenger-Mutant | -10/Mines Scavenger-Gunner | -9/Materials Sprinter | -9/Storage Sprinter | -9/Garrison Scavenger-Sprinter | -8/Materials Scavenger-Gunner | -8/Garrison Scavenger-Skirmisher | -8/Materials Scavenger-Sprinter | -8/Garrison Scavenger-Sprinter | -7/Factory Scavenger-Sprinter | -7/Waste Scavenger-Sprinter | -7/Factory Scavenger-Sprinter | -7/Garrison Scavenger-Sprinter | -7/Factory Scavenger-Sprinter | -7/Garrison Scavenger-Sprinter | -7/Factory Scavenger-Sprinter | -7/Garrison Sprinter | -7/Factory Sprinter | -7/Garrison Mutant | -6/Factory Mutant | -6/Waste Scavenger-Mutant | -6/Factory Mutant | -6/Garrison Resources | -11 -10 -10 -9 -9 -9 -8 -8 -8 -8 -7 -7 -7 -7 -7 -7 -7 -7 -7 -7 -6 -6 -6 -6 ----------- Run | Yrd Mat Min Mat Sto Gar Mat Gar Mat Gar Fac Was Fac Gar Fac Gar Fac Gar Fac Gar Fac Was Fac Gar Matter Collected 18772 | 276 567 212 1275 931 1632 88 1610 599 1379 50 . . 2840 158 2672 92 1927 640 686 337 . 801 . Remotely . | . . . . . . . . . . . . . . . . . . . . . . . . Salvage Created 18364 | 102 207 352 1279 1596 1418 99 1713 921 1053 177 . . 3588 211 1499 153 1477 710 832 195 . 659 123 Parts 977 | 5 22 21 109 104 80 8 71 57 46 4 . . 155 5 84 9 93 37 35 9 . 21 2 Haulers Intercepted 13 | . 1 . 4 1 . . . 2 . . . . . 2 . 1 . 1 . . . 1 . Recyclers Shooed 5 | . . . . 1 . . . 3 . . . . . . . . . . . . . 1 . Parts Field Recycled . | . . . . . . . . . . . . . . . . . . . . . . . . Retrieved Matter . | . . . . . . . . . . . . . . . . . . . . . . . . Parts Self-Destructed . | . . . . . . . . . . . . . . . . . . . . . . . . Prevented . | . . . . . . . . . . . . . . . . . . . . . . . . Parts Restored . | . . . . . . . . . . . . . . . . . . . . . . . . Kills | -11 -10 -10 -9 -9 -9 -8 -8 -8 -8 -7 -7 -7 -7 -7 -7 -7 -7 -7 -7 -6 -6 -6 -6 ------- Run | Yrd Mat Min Mat Sto Gar Mat Gar Mat Gar Fac Was Fac Gar Fac Gar Fac Gar Fac Gar Fac Was Fac Gar Combat Hostiles Destroyed 334 | . 4 9 28 24 34 2 28 10 28 . . . 48 2 33 2 37 9 23 4 . 7 2 Melee 15 | . . . . . 3 1 4 . 4 . . . 1 . . . . . 2 . . . . Guns 265 | . 2 9 24 22 21 . 18 9 20 . . . 46 2 33 2 29 9 13 3 . 3 . Cannons 13 | . 2 . . 2 6 . 1 1 . . . . . . . . . . . . . . 1 AOE 38 | . . . 4 . 4 1 5 . 4 . . . . . . . 8 . 8 1 . 2 1 Classes Destroyed 18 | 2 7 . 1 . 2 . 1 1 2 . . . . . 1 . . . . . . 1 . Worker 15 | . 1 2 2 5 . 1 . 1 . 2 . . . . . . . . . . . 1 . Builder 6 | . 1 . . 1 . . . . . . . . . . . . . 1 . . . 3 . Tunneler 1 | 1 . . . . . . . . . . . . . . . . . . . . . . . Hauler 13 | . 1 . 4 1 . . . 2 . . . . . 2 . 1 . 1 . . . 1 . Recycler 15 | 1 . . 1 3 . . . 4 . 1 . . . . . . . 3 . . . 2 . Mechanic 7 | . . . . . . . . 2 . 1 . . . . . 1 . 2 . . . 1 . Operator 2 | . 1 . 1 . . . . . . . . . . . . . . . . . . . . Drone 1 | . . . . . . . . . . . . . . . . . . . . . . 1 . Watcher 9 | . 1 . 3 1 . . . . . . . . . . . . 3 . . . . 1 . Swarmer 95 | . 3 3 11 . 13 . . . 7 . . . 13 . 14 2 15 5 9 . . . . Saboteur 3 | . . . . . 3 . . . . . . . . . . . . . . . . . . Grunt 126 | . 1 6 9 11 9 1 16 6 16 . . . 19 2 9 . 7 . 7 3 . 2 2 Brawler 3 | . . . . . . . . . 1 . . . 1 . 1 . . . . . . . . Duelist 11 | . . . . . . . 2 . . . . . 3 . 1 . 3 . 1 1 . . . Sentry 68 | . . . 8 13 7 1 8 4 1 . . . 8 . 6 . 5 3 1 . . 3 . Specialist 2 | . . . . . . . . . . . . . . . 2 . . . . . . . . Hunter 11 | . . . . . 2 . 2 . . . . . 4 . . . 2 . . . . 1 . Programmer 14 | . . . . . . . . . 3 . . . . . . . 5 1 5 . . . . Thug 1 | . . . . . . . . . . . . . 1 . . . . . . . . . . Best Kill Streak 12 | 2 3 3 10 10 6 1 4 6 12 2 . . 6 3 8 2 12 6 8 2 . 5 2 Combat Bots Only 12 | . 3 3 5 7 6 1 4 4 12 . . . 6 2 8 2 11 3 8 2 . 2 2 Max Kills in Single Turn 4 | 1 1 1 4 2 2 1 2 1 3 1 . . 3 1 1 1 3 2 3 1 . 2 1 Gunslinging 2 | . . . 1 1 1 . 1 . 2 . . . 1 . . . 1 . 1 . . . . Exploded 4 | . . . 4 . 2 1 2 . 2 . . . . . . . 3 . 3 1 . 1 1 Melee 1 | . . . . . 1 1 1 . 1 . . . 1 . . . . . 1 . . . . Uniques/NPCs Destroyed . | . . . . . . . . . . . . . . . . . . . . . . . . Combat | -11 -10 -10 -9 -9 -9 -8 -8 -8 -8 -7 -7 -7 -7 -7 -7 -7 -7 -7 -7 -6 -6 -6 -6 -------- Run | Yrd Mat Min Mat Sto Gar Mat Gar Mat Gar Fac Was Fac Gar Fac Gar Fac Gar Fac Gar Fac Was Fac Gar Hostile Shots Fired 2228 | . 25 25 70 88 75 47 145 31 158 . . 1 318 37 166 7 155 211 202 55 . 245 167 Missed 967 | . 8 10 22 31 37 28 46 12 46 . . . 173 25 84 3 57 111 94 27 . 87 66 Hits 1261 | . 17 15 48 57 38 19 99 19 112 . . 1 145 12 82 4 98 100 108 28 . 158 101 Melee 22 | . . . . . 1 . 2 . . . . . . . . . . . 3 3 . 13 . Projectile 1239 | . 17 15 48 57 37 19 97 19 112 . . 1 145 12 82 4 98 100 105 25 . 145 101 AOE 1 | . . . . . . . . . . . . . . . . . . 1 . . . . . Critical Strikes 32 | . . . 1 3 2 1 3 1 7 . . . 1 1 . . 1 3 8 . . . . Part Disruptions 1 | . . . . . . . . . 1 . . . . . . . . . . . . . . Damage Taken 15925 | . 145 201 530 790 486 216 1721 307 1663 . . 18 1493 170 942 67 1215 1125 1588 362 . 1748 1138 Core 3812 | . 36 63 55 151 82 31 341 72 538 . . . 226 10 103 32 203 218 473 108 . 326 744 Absorbed by Shields 167 | . . . . . . . 92 . . . . . . . 8 . 67 . . . . . . Ignored by Resistances 29 | . . . . . . . . . . . . . . . . . . . . 29 . . . Regen/Repaired (Parts) 224 | . . . 16 58 . 10 . . . . . . . . . . . 140 . . . . . Core Remaining (%) 65 | 100 . 90 . . 64 . . . 29 . . . . . . . . . 46 . . . . Volleys Fired 922 | 4 29 26 65 70 103 6 84 28 70 . . . 130 6 72 4 87 25 58 9 2 34 10 Largest 6 | 2 2 2 3 3 2 2 3 3 3 . . . 5 4 5 4 6 5 5 4 1 3 2 Hottest 195 | 40 60 50 71 69 66 61 195 96 74 . . . 127 101 122 94 140 125 134 118 30 83 123 Shots Fired 2565 | 8 46 52 191 187 177 12 184 81 159 . 1 . 452 25 304 16 331 99 143 30 2 53 12 Gun 2418 | 8 34 52 190 177 127 6 166 75 151 . 1 . 452 25 304 16 322 99 136 29 2 39 7 Cannon 97 | . 12 . . 10 48 6 5 6 . . . . . . . . . . . . . 6 4 Launcher 50 | . . . 1 . 2 . 13 . 8 . . . . . . . 9 . 7 1 . 8 1 Special . | . . . . . . . . . . . . . . . . . . . . . . . . Kinetic 2421 | 8 45 52 190 187 175 12 88 81 151 . 1 . 452 25 304 16 322 99 136 29 2 39 7 Thermal 87 | . . . . . . . 83 . . . . . . . . . . . . . . . 4 Explosive 50 | . . . 1 . 2 . 13 . 8 . . . . . . . 9 . 7 1 . 8 1 Electromagnetic 7 | . 1 . . . . . . . . . . . . . . . . . . . . 6 . Robot Hit Streak 36 | 3 6 5 15 20 34 36 22 9 17 . . . 17 7 14 7 10 8 13 10 . 8 12 Robot Miss Streak 8 | 3 2 3 8 3 2 1 3 3 7 . 1 . 7 1 5 2 6 6 3 5 . 5 1 Penetration Max 2 | . . . . . 1 . 1 1 1 . . . 1 . . . . 1 1 2 1 . . Secondary Targets 55 | . . 1 4 3 3 . 6 1 5 . . . 8 . 5 . 13 1 2 2 . 1 . Max Gunslinging Chain 2 | . . 1 1 1 1 . 1 1 2 . . . 1 . 1 . 1 1 1 1 . 1 . Shots Hit Robots 1688 | 4 29 31 119 134 133 13 158 47 94 11 . 1 321 18 172 12 177 51 91 20 . 44 8 Core Hits 805 | 3 13 16 55 54 64 2 76 24 49 1 . . 140 6 79 6 87 26 47 10 . 40 7 Critical Kills 9 | . . 2 . . 1 . . 3 . . . . . . . . 2 . . . . 1 . Critical Parts Destroyed 15 | . . 1 2 . 1 . . 1 1 . . . 1 . 1 . 1 . 1 . 1 3 1 Critical Strikes 46 | . 1 3 3 . 9 . 5 4 1 . . . 7 . 1 1 4 . 1 . 1 4 1 Burn 2 | . . . . . . . 2 . . . . . . . . . . . . . . . . Destroy 21 | . . 3 2 . 2 . . 4 1 . . . 1 . 1 . 3 . 1 . 1 1 1 Blast 4 | . 1 . . . 1 . 2 . . . . . . . . . . . . . . . . Smash 3 | . . . . . . . . . . . . . . . . . . . . . . 3 . Sever 10 | . . . 1 . 6 . 1 . . . . . . . . 1 1 . . . . . . Impale 6 | . . . . . . . . . . . . . 6 . . . . . . . . . . Melee Attacks 308 | . 5 . 9 1 41 3 66 4 22 14 . 1 72 3 5 4 17 16 5 . . 14 6 Impact 21 | . 5 . . . . . . . . . . . . . . . . . . . . 10 6 Slashing 189 | . . . 9 1 41 3 66 4 14 . . . 2 . 3 4 17 16 5 . . 4 . Piercing 90 | . . . . . . . . . 2 13 . . 70 3 2 . . . . . . . . Sneak Attacks 27 | . . . 1 . 1 1 1 . 6 5 . 1 1 1 . 1 . 5 . . . 3 . Combat Hostiles 2 | . . . . . . . 1 . . . . . 1 . . . . . . . . . . Follow-up Attacks 2 | . . . . . . . . . . . . . . . . . . . . . . 2 . Damage Inflicted 39533 | 49 374 453 2195 2150 3498 319 4339 970 2291 456 . . 7375 379 3039 348 4082 1346 2873 610 56 1959 372 Guns 24502 | 49 214 453 1835 1975 1244 97 1645 904 1545 . . . 4490 288 2837 126 2877 832 1838 494 56 677 26 Cannons 1473 | . 160 . . 175 505 122 187 54 . . . . . . . . . . . . . 174 96 Explosions 4511 | . . . 171 . 252 . 605 . 587 . . . . . . . 870 . 954 116 . 720 236 Melee 9021 | . . . 189 . 1497 100 1902 . 159 456 . . 2885 91 202 222 335 514 81 . . 388 . Ramming 26 | . . . . . . . . 12 . . . . . . . . . . . . . . 14 Kinetic 24916 | 49 361 453 1835 2150 1749 219 1056 958 1545 . . . 4490 288 2837 126 2877 832 1838 494 56 677 26 Thermal 931 | . . . . . . . 776 . . . . . . . . . . . . . . 59 96 Explosive 4452 | . . . 171 . 252 . 605 . 587 . . . . . . . 870 . 954 116 . 661 236 Electromagnetic 187 | . 13 . . . . . . . . . . . . . . . . . . . . 174 . Impact 239 | . . . . . . . . . . . . . . . . . . . . . . 239 . Slashing 5445 | . . . 189 . 1497 100 1902 . 159 . . . 95 . 202 222 335 514 81 . . 149 . Piercing 3337 | . . . . . . . . . . 456 . . 2790 91 . . . . . . . . . Highest Corruption 28 | . 1 2 . . 7 3 20 . 28 . 8 8 15 . 8 2 17 22 27 . 5 12 12 Average Corruption 11 | . 1 1 . . 7 3 17 . 15 . 8 8 14 . 8 1 3 20 11 . 5 11 12 Corruption Purged . | . . . . . . . . . . . . . . . . . . . . . . . . Corruption Blocked . | . . . . . . . . . . . . . . . . . . . . . . . . Effects 306 | . 5 . . . 17 2 73 . 30 . 1 1 44 . 9 . 17 48 30 . . 23 6 Message Errors 71 | . 1 . . . 4 . 25 . 9 . . . 6 . 3 . 2 10 3 . . 7 1 Matter Fused 69 | . 2 . . . 3 . 18 . 6 . . . 9 . 2 . 5 11 6 . . 5 2 Heat Flow Errors 26 | . 1 . . . . 1 6 . 2 . . . 4 . 1 . . 2 6 . . 3 . Energy Discharges 32 | . 1 . . . 3 . 12 . 4 . . . 2 . 1 . 3 2 1 . . 3 . Parts Rejected 4 | . . . . . 1 . . . . . . . 1 . . . . 1 1 . . . . Parts Fused 1 | . . . . . . . . . . . . . 1 . . . . . . . . . . Data Loss (minor) 30 | . . . . . 2 1 2 . 5 . . . 4 . . . 3 4 6 . . 3 . Data Loss (major) 16 | . . . . . 2 . 3 . . . . 1 3 . . . . 4 2 . . . 1 Misfires 12 | . . . . . 1 . 6 . 1 . 1 . 1 . . . 1 1 . . . . . Alerts 4 | . . . . . . . . . 1 . . . 1 . . . 2 . . . . . . Misdirections 15 | . . . . . . . . . . . . . 2 . . . . 8 4 . . . 1 Weapon Failures 26 | . . . . . 1 . 1 . 2 . . . 10 . 2 . 1 5 1 . . 2 1 Overload Shots . | . . . . . . . . . . . . . . . . . . . . . . . . Overflow Damage 845 | . 7 . . . 16 26 54 . 21 99 . . 108 31 25 . 23 127 18 . . 290 . Projectiles 39 | . 7 . . . . . 32 . . . . . . . . . . . . . . . . Explosions 121 | . . . . . . . 18 . 21 . . . . . . . 23 . 18 . . 41 . Melee 685 | . . . . . 16 26 4 . . 99 . . 108 31 25 . . 127 . . . 249 . Knockbacks 7 | . 4 . . . 1 . 1 1 . . . . . . . . . . . . . . . Impact . | . . . . . . . . . . . . . . . . . . . . . . . . Kinetic 7 | . 4 . . . 1 . 1 1 . . . . . . . . . . . . . . . Secondary . | . . . . . . . . . . . . . . . . . . . . . . . . Self-Inflicted Damage 184 | . . . . . . . 106 4 38 . . . . . . . . . . . . 29 7 Shots 9 | . . . . . . . 4 . 3 . . . . . . . . . . . . 2 . Rammed 6 | . 1 . . . . . . 1 . . . . . . . . . . . . . . 4 Targets Rammed 7 | . 1 . . . . . . 2 . . . . . . . . . . . . . . 4 Kicked . | . . . . . . . . . . . . . . . . . . . . . . . . Crushed 1 | . . . . . . . . 1 . . . . . . . . . . . . . . . Highest Temperature 332 | . 118 70 90 220 30 302 332 56 177 . 4 . 321 115 265 32 288 165 272 310 . 227 90 Average Temperature 54 | . 59 26 22 49 7 73 103 13 26 . 4 . 63 60 55 19 50 27 87 96 . 53 42 Received Heat Transfer 4010 | . 15 108 135 315 117 87 675 153 441 . . 9 267 24 257 . 135 240 327 96 . 270 339 Effects 4 | . . . . . . 3 . . . . . . 1 . . . . . . . . . . Interference 3 | . . . . . . 3 . . . . . . . . . . . . . . . . . Short Circuit 1 | . . . . . . . . . . . . . 1 . . . . . . . . . . Siege Activations . | . . . . . . . . . . . . . . . . . . . . . . . . Martial Activations . | . . . . . . . . . . . . . . . . . . . . . . . . Shielding Activations . | . . . . . . . . . . . . . . . . . . . . . . . . Robots Disrupted . | . . . . . . . . . . . . . . . . . . . . . . . . Combat Hostiles . | . . . . . . . . . . . . . . . . . . . . . . . . Robots Corrupted 2 | . . . . . . . . . . . . . . . . . . . . . . 2 . Combat Hostiles 2 | . . . . . . . . . . . . . . . . . . . . . . 2 . Parts Fried 2 | . . . . . . . . . . . . . . . . . . . . . . 2 . Impact Corruptions 5 | . . . . . . . . . . . . . . . . . . . . . . 5 . Robots Melted . | . . . . . . . . . . . . . . . . . . . . . . . . Combat Hostiles . | . . . . . . . . . . . . . . . . . . . . . . . . Parts Melted 2 | . . . . . . . 1 . . . . . . . . . . . . . . . 1 Heat Transferred 2272 | . . . . . . . 2072 . . . . . . . . . . . . . . 50 150 Parts Sabotaged 3 | . . . . . 3 . . . . . . . . . . . . . . . . . . Parts Stolen 4 | . . . . . . . . . . . . . . . . . . . . . . 4 . Parts Stripped . | . . . . . . . . . . . . . . . . . . . . . . . . Power Chain Reactions 1 | . . . . . . . . . . . . . . . . . . . . . . 1 . Alert | -11 -10 -10 -9 -9 -9 -8 -8 -8 -8 -7 -7 -7 -7 -7 -7 -7 -7 -7 -7 -6 -6 -6 -6 ------- Run | Yrd Mat Min Mat Sto Gar Mat Gar Mat Gar Fac Was Fac Gar Fac Gar Fac Gar Fac Gar Fac Was Fac Gar Maximum Alert Level 5 | . . . 3 3 5 3 5 3 5 3 1 1 5 3 5 5 5 5 5 4 2 1 1 Low Security (%) 10 | 100 100 100 15 . . . . . . . . 34 1 . . . . . . . . . 78 Level 1 9 | . . . 15 22 . . . . 8 . 100 65 18 . . . . . . . 16 99 21 Level 2 14 | . . . 40 66 14 . 3 73 22 . . . 7 . . . . . . . 83 . . Level 3 18 | . . . 28 11 19 100 29 26 27 100 . . 17 100 20 . . . . . . . . Level 4 27 | . . . . . 39 . 52 . 34 . . . 36 . 9 89 21 94 31 100 . . . Level 5 18 | . . . . . 26 . 14 . 7 . . . 18 . 69 10 78 5 68 . . . . High Security . | . . . . . . . . . . . . . . . . . . . . . . . . Max Security . | . . . . . . . . . . . . . . . . . . . . . . . . Sterilizations 1 | . . . . . . . . 1 . . . . . . . . . . . . . . . Peak Influence 2665 | 5 70 130 750 722 1869 954 1993 975 1748 917 317 204 1826 1024 2665 1776 2485 1693 2210 1185 411 326 243 Initial 1398 | . 3 9 35 245 429 910 551 971 338 917 317 200 142 958 716 1398 1251 1283 1183 1159 411 266 168 Average 1028 | 1 16 89 480 527 1236 900 1273 616 996 908 304 196 1064 944 1812 1451 1992 1389 1888 1155 403 271 179 Influence Increases 16881 | 10 242 230 1155 929 1490 189 1672 460 1550 39 . 14 1854 206 2009 630 1454 888 1187 136 . 392 145 Destroy 0b10 Robot/C 7840 | . 80 180 640 480 700 40 700 240 720 . . . 980 40 1080 140 920 180 460 80 . 140 40 Destroy 0b10 Robot/NC 500 | 10 25 10 65 60 30 5 25 55 . 20 . . 65 10 5 10 20 35 5 . . 45 . Destroy Leader 936 | . 14 40 168 126 30 20 20 76 40 . . . 70 4 70 22 70 52 50 10 . 54 . Allied During Kill 503 | . . . 21 . 13 . 50 25 27 . . . 8 . 317 1 41 . . . . . . Trap Triggered on 0b10 20 | . . . . . . . . . 20 . . . . . . . . . . . . . . Successful Hack 406 | . 45 . 7 22 16 32 . 12 . 4 . 14 14 28 14 22 14 86 30 . . 46 . Select Force Hacks 60 | . 60 . . . . . . . . . . . . . . . . . . . . . . Disable Machine 360 | . . . 60 30 45 . 30 30 30 . . . 45 . 30 15 15 . 15 . . 15 . Anti-Garrison Action 3150 | . . . . . 500 . 700 . 600 . . . 500 . 400 . 150 . 250 . . . 50 Destroy Structure 478 | . 3 . 14 10 111 2 72 7 23 . . . 7 4 3 3 59 10 62 16 . 62 10 Partial Spotted 330 | . 15 . 30 30 . . . . 15 15 . . 15 30 . 45 30 60 45 . . . . Lose Combat Pursuer 1770 | . . . 150 15 45 90 75 15 75 . . . 150 90 90 . 135 465 270 30 . 30 45 Miscellaneous 528 | . . . . 156 . . . . . . . . . . . 372 . . . . . . . Influence Decreases 16638 | 5 223 164 665 849 281 1209 528 1932 323 881 619 97 232 1008 368 1507 797 1642 668 1171 794 533 142 Entered New Map 11321 | . 2 15 55 335 231 959 298 1022 183 831 589 87 62 868 308 1267 537 1162 508 1051 764 115 72 Time Decay 2437 | 5 221 149 310 334 . 70 . 350 . 50 30 10 . 130 . 90 . 310 . 90 10 278 . Lost Part 1060 | . . . 60 20 10 30 150 10 120 . . . 150 10 20 . 80 . 160 30 . 140 70 Lost Ally 620 | . . . 90 10 40 . 80 100 20 . . . 20 . 40 . 180 20 . . 20 . . Purge Threat 1200 | . . . 150 150 . 150 . 450 . . . . . . . 150 . 150 . . . . . Squads Dispatched 33 | . 3 . 4 2 . 2 . 2 . . . . . 2 . 3 . 10 . 1 . 4 . Investigation 16 | . 2 . 2 1 . 2 . 2 . . . . . . . 2 . 4 . . . 1 . Extermination 5 | . . . . . . . . . . . . . . 1 . . . 3 . . . 1 . Reinforcement 10 | . 1 . 2 . . . . . . . . . . 1 . 1 . 2 . 1 . 2 . Assault 1 | . . . . . . . . . . . . . . . . . . 1 . . . . . Garrison 1 | . . . . 1 . . . . . . . . . . . . . . . . . . . Intercept . | . . . . . . . . . . . . . . . . . . . . . . . . Searches Triggered . | . . . . . . . . . . . . . . . . . . . . . . . . Construction Impeded 2 | . . . . . . . . . . . . . . . . . . . . . . 2 . Haulers Reinforced 2 | . . . . . . . . . . . . . . 1 . . . . . 1 . . . Active Scanning Responses . | . . . . . . . . . . . . . . . . . . . . . . . . Cargo Convoy Interrupts . | . . . . . . . . . . . . . . . . . . . . . . . . Stealth | -11 -10 -10 -9 -9 -9 -8 -8 -8 -8 -7 -7 -7 -7 -7 -7 -7 -7 -7 -7 -6 -6 -6 -6 --------- Run | Yrd Mat Min Mat Sto Gar Mat Gar Mat Gar Fac Was Fac Gar Fac Gar Fac Gar Fac Gar Fac Was Fac Gar Distress Signals 18 | . 1 . 5 3 . . . 1 . . . . . . . . 2 5 . . . 1 . Communications Jammed . | . . . . . . . . . . . . . . . . . . . . . . . . Distress Signals . | . . . . . . . . . . . . . . . . . . . . . . . . Times Spotted 589 | . 13 9 53 27 33 13 38 15 37 2 6 4 50 11 51 6 48 63 63 8 3 15 21 Peak Tracking Total 24 | . 5 3 9 9 5 9 6 4 10 1 6 4 8 5 7 3 7 18 24 5 3 4 12 Tactical Retreats 53 | . . . 4 1 2 1 3 1 3 . . . 6 3 3 . 5 13 5 1 . 1 1 Traps | -11 -10 -10 -9 -9 -9 -8 -8 -8 -8 -7 -7 -7 -7 -7 -7 -7 -7 -7 -7 -6 -6 -6 -6 ------- Run | Yrd Mat Min Mat Sto Gar Mat Gar Mat Gar Fac Was Fac Gar Fac Gar Fac Gar Fac Gar Fac Was Fac Gar Traps Triggered 42 | . 1 . 1 . 5 1 3 2 6 1 . . 5 . 3 4 2 5 . 1 . . 2 Indirectly . | . . . . . . . . . . . . . . . . . . . . . . . . Trap Hack Attempts 14 | . . . . . . . . . 14 . . . . . . . . . . . . . . Triggered . | . . . . . . . . . . . . . . . . . . . . . . . . Disarmed . | . . . . . . . . . . . . . . . . . . . . . . . . Reprogrammed 1 | . . . . . . . . . 1 . . . . . . . . . . . . . . Reused 2 | . . . . . . . . . 2 . . . . . . . . . . . . . . Traps Extracted . | . . . . . . . . . . . . . . . . . . . . . . . . Installed 2 | . . . . . . . . . 2 . . . . . . . . . . . . . . Triggered 2 | . . . . . . . . . 2 . . . . . . . . . . . . . . Machines | -11 -10 -10 -9 -9 -9 -8 -8 -8 -8 -7 -7 -7 -7 -7 -7 -7 -7 -7 -7 -6 -6 -6 -6 ---------- Run | Yrd Mat Min Mat Sto Gar Mat Gar Mat Gar Fac Was Fac Gar Fac Gar Fac Gar Fac Gar Fac Was Fac Gar Machines Disabled 65 | . . . 4 2 13 . 8 2 9 . . . 8 . 8 1 4 . 5 . . 1 . Max in Single Turn 2 | . . . 1 1 2 . 1 1 1 . . . 1 . 1 . 1 . 1 . . 1 . Garrison Relay 31 | . . . . . 6 . 4 . 6 . . . 5 . 4 . 3 . 3 . . . . Phase Generator 7 | . . . . . 1 . 1 . 1 . . . 1 . 1 . 1 . 1 . . . . Machines Repaired . | . . . . . . . . . . . . . . . . . . . . . . . . Machines Dismantled 7 | . . . . . . . 2 . 1 . . . 1 . 2 . . . 1 . . . . Machines Sabotaged . | . . . . . . . . . . . . . . . . . . . . . . . . Overloaded Fab Kills . | . . . . . . . . . . . . . . . . . . . . . . . . Hacking | -11 -10 -10 -9 -9 -9 -8 -8 -8 -8 -7 -7 -7 -7 -7 -7 -7 -7 -7 -7 -6 -6 -6 -6 --------- Run | Yrd Mat Min Mat Sto Gar Mat Gar Mat Gar Fac Was Fac Gar Fac Gar Fac Gar Fac Gar Fac Was Fac Gar Machines Accessed 108 | . 9 . 12 14 3 5 4 8 3 2 . 2 4 5 3 9 2 16 2 . . 4 1 Terminals 68 | . 7 . 8 10 3 2 4 5 3 1 . 1 4 . 3 3 2 7 2 . . 2 1 Fabricators 5 | . . . . . . . . . . . . . . 2 . 1 . 2 . . . . . Repair Stations 9 | . . . 1 2 . 1 . . . 1 . . . . . 1 . 3 . . . . . Recycling Units 8 | . 2 . 1 1 . . . 1 . . . . . 2 . 1 . . . . . . . Scanalyzers 8 | . . . 2 . . 1 . 1 . . . . . . . 1 . 2 . . . 1 . Garrison Access 10 | . . . . 1 . 1 . 1 . . . 1 . 1 . 2 . 2 . . . 1 . Total Hacks 267 | . 33 . 28 34 7 10 8 21 8 3 . 6 11 10 8 28 4 31 5 . . 11 1 Successful 122 | . 21 . 13 22 2 8 1 12 . 1 . 2 3 3 1 11 1 12 2 . . 6 1 Failed 142 | . 11 . 15 12 5 2 7 9 8 2 . 4 8 7 7 16 3 18 3 . . 5 . Catastrophic 33 | . . . 5 1 3 . 3 5 1 1 . . 2 1 1 . . 7 1 . . 2 . Database Lockouts 3 | . 1 . . . . . . . . . . . . . . 1 . 1 . . . . . Manual 120 | . 27 . 13 15 1 6 2 12 3 . . 4 2 1 2 12 . 14 . . . 5 1 Terminals 177 | . 26 . 17 24 7 5 8 15 8 2 . 4 11 . 8 7 4 17 5 . . 8 1 Fabricators 11 | . . . . . . . . . . . . . . 4 . 4 . 3 . . . . . Repair Stations 21 | . . . 5 7 . 2 . . . 1 . . . . . 3 . 3 . . . . . Recycling Units 18 | . 7 . 2 2 . . . 2 . . . . . 3 . 2 . . . . . . . Scanalyzers 21 | . . . 4 . . 2 . 3 . . . . . . . 7 . 3 . . . 2 . Garrison Access 19 | . . . . 1 . 1 . 1 . . . 2 . 3 . 5 . 5 . . . 1 . Terminal Hacks 40 | . 6 . 3 8 1 2 . 7 . 1 . . 1 . 1 1 1 4 2 . . 2 . Part Schematic 1 | . . . . 1 . . . . . . . . . . . . . . . . . . . Robot Schematic 1 | . 1 . . . . . . . . . . . . . . . . . . . . . . Open Door 3 | . . . . 3 . . . . . . . . . . . . . . . . . . . Branch Access Points 2 | . . . . . . . . . . . . . . . . . . 1 . . . 1 . Emergency Access Points 3 | . . . . . . . . . . . . . 1 . 1 . 1 . . . . . . Terminal Index 1 | . 1 . . . . . . . . . . . . . . . . . . . . . . Alert Level 2 | . . . . . . . . 1 . . . . . . . . . 1 . . . . . Unreport Threat 8 | . . . 1 1 . 1 . 3 . . . . . . . 1 . 1 . . . . . Locate Traps 10 | . 2 . 1 3 . . . 2 . 1 . . . . . . . . . . . 1 . Hauler Manifests 4 | . 1 . 1 . . 1 . 1 . . . . . . . . . . . . . . . Zone Layout 2 | . 1 . . . . . . . . . . . . . . . . 1 . . . . . Garrison Registry 1 | . . . . . . . . . . . . . . . . . . . 1 . . . . Security Stations 2 | . . . . . 1 . . . . . . . . . . . . . 1 . . . . Fabricator Hacks 3 | . . . . . . . . . . . . . . 1 . 1 . 1 . . . . . Network Status 3 | . . . . . . . . . . . . . . 1 . 1 . 1 . . . . . Repair Station Hacks 9 | . . . 3 6 . . . . . . . . . . . . . . . . . . . Scan Component 5 | . . . 2 3 . . . . . . . . . . . . . . . . . . . Repair 4 | . . . 1 3 . . . . . . . . . . . . . . . . . . . Recycling Unit Hacks 2 | . . . 1 1 . . . . . . . . . . . . . . . . . . . Retrieve Components 2 | . . . 1 1 . . . . . . . . . . . . . . . . . . . Scanalyzer 14 | . . . 4 . . 2 . 1 . . . . . . . 5 . 1 . . . 1 . Insert Component 2 | . . . . . . . . . . . . . . . . 2 . . . . . . . Analyze 2 | . . . . . . . . . . . . . . . . 2 . . . . . . . Retrieve Study 10 | . . . 4 . . 2 . 1 . . . . . . . 1 . 1 . . . 1 . Garrison Access Hacks 8 | . . . . 1 . 1 . 1 . . . 1 . 1 . 1 . 1 . . . 1 . Unlock Access 8 | . . . . 1 . 1 . 1 . . . 1 . 1 . 1 . 1 . . . 1 . Unauthorized Hacks 46 | . 15 . 2 6 1 3 1 3 . . . 1 2 1 . 3 . 5 . . . 2 1 Terminals 32 | . 11 . 1 5 1 2 1 1 . . . 1 2 . . 2 . 2 . . . 2 1 Track 1 | . 1 . . . . . . . . . . . . . . . . . . . . . . Assimilate 4 | . 2 . 1 1 . . . . . . . . . . . . . . . . . . . Botnet 16 | . 2 . . 4 . 2 . 1 . . . 1 . . . 2 . 2 . . . 2 . Operators 1 | . 1 . . . . . . . . . . . . . . . . . . . . . . Skim 5 | . 5 . . . . . . . . . . . . . . . . . . . . . . Override 5 | . . . . . 1 . 1 . . . . . 2 . . . . . . . . . 1 Fabricators 3 | . . . . . . . . . . . . . . 1 . 1 . 1 . . . . . Haulers 3 | . . . . . . . . . . . . . . 1 . 1 . 1 . . . . . Repair Stations 3 | . . . . . . 1 . . . . . . . . . . . 2 . . . . . Patch 3 | . . . . . . 1 . . . . . . . . . . . 2 . . . . . Recycling Units 8 | . 4 . 1 1 . . . 2 . . . . . . . . . . . . . . . Reject 5 | . 2 . 1 1 . . . 1 . . . . . . . . . . . . . . . Mask 1 | . . . . . . . . 1 . . . . . . . . . . . . . . . Tunnel 2 | . 2 . . . . . . . . . . . . . . . . . . . . . . Scanalyzers . | . . . . . . . . . . . . . . . . . . . . . . . . Garrison Access . | . . . . . . . . . . . . . . . . . . . . . . . . Data Cores Recovered . | . . . . . . . . . . . . . . . . . . . . . . . . Used . | . . . . . . . . . . . . . . . . . . . . . . . . Hacking Detections 93 | . 7 . 12 10 3 3 4 7 3 2 . 1 3 5 3 9 2 13 2 . . 4 . Full Trace Events 16 | . . . 1 . 1 . 2 . 3 . . . 1 . 2 2 . 2 1 . . 1 . Feedback Events 3 | . . . . . . . 1 . 1 . . . . . . 1 . . . . . . . Corruption 3 | . . . . . . . 1 . 1 . . . . . . 1 . . . . . . . Feedback Blocked . | . . . . . . . . . . . . . . . . . . . . . . . . Robot Schematics Acquired 1 | . 1 . . . . . . . . . . . . . . . . . . . . . . Robots Built . | . . . . . . . . . . . . . . . . . . . . . . . . Authchips . | . . . . . . . . . . . . . . . . . . . . . . . . Time . | . . . . . . . . . . . . . . . . . . . . . . . . Total Robot Build Rating . | . . . . . . . . . . . . . . . . . . . . . . . . Part Schematics Acquired 3 | . . . . 1 . . . . . . . . . . . 2 . . . . . . . Parts Built . | . . . . . . . . . . . . . . . . . . . . . . . . Authchips . | . . . . . . . . . . . . . . . . . . . . . . . . Time . | . . . . . . . . . . . . . . . . . . . . . . . . Total Part Build Rating . | . . . . . . . . . . . . . . . . . . . . . . . . Part Studies Acquired 10 | . . . 4 . . 2 . 1 . . . . . . . 1 . 1 . . . 1 . Parts Repaired 4 | . . . 1 3 . . . . . . . . . . . . . . . . . . . Time 141 | . . . 26 115 . . . . . . . . . . . . . . . . . . . Parts Recycled . | . . . . . . . . . . . . . . . . . . . . . . . . Recycled Matter . | . . . . . . . . . . . . . . . . . . . . . . . . Retrieved Matter . | . . . . . . . . . . . . . . . . . . . . . . . . Retrieved Components 5 | . . . 2 3 . . . . . . . . . . . . . . . . . . . Parts Scanalyzed 2 | . . . . . . . . . . . . . . . . 2 . . . . . . . Part Schematics Acquired 2 | . . . . . . . . . . . . . . . . 2 . . . . . . . Parts Damaged . | . . . . . . . . . . . . . . . . . . . . . . . . Bothacking | -11 -10 -10 -9 -9 -9 -8 -8 -8 -8 -7 -7 -7 -7 -7 -7 -7 -7 -7 -7 -6 -6 -6 -6 ------------ Run | Yrd Mat Min Mat Sto Gar Mat Gar Mat Gar Fac Was Fac Gar Fac Gar Fac Gar Fac Gar Fac Was Fac Gar Used RIF Installer . | . . . . . . . . . . . . . . . . . . . . . . . . Robots Hacked 1 | . . . . . . . . . . 1 . . . . . . . . . . . . . Non-combat 1 | . . . . . . . . . . 1 . . . . . . . . . . . . . Combat . | . . . . . . . . . . . . . . . . . . . . . . . . Robot Hacks Applied 1 | . . . . . . . . . . 1 . . . . . . . . . . . . . find_chute 1 | . . . . . . . . . . 1 . . . . . . . . . . . . . Relay Couplers Released 131 | . . . . . 26 . 20 . 25 . . . 23 . 15 . 11 . 11 . . . . Machine Destruction 131 | . . . . . 26 . 20 . 25 . . . 23 . 15 . 11 . 11 . . . . Fabnet Peak Effective % . | . . . . . . . . . . . . . . . . . . . . . . . . Robots Rewired 11 | . . . . . . . 7 . 4 . . . . . . . . . . . . . . Allies Hacked . | . . . . . . . . . . . . . . . . . . . . . . . . Hacks Repelled . | . . . . . . . . . . . . . . . . . . . . . . . . Allies | -11 -10 -10 -9 -9 -9 -8 -8 -8 -8 -7 -7 -7 -7 -7 -7 -7 -7 -7 -7 -6 -6 -6 -6 -------- Run | Yrd Mat Min Mat Sto Gar Mat Gar Mat Gar Fac Was Fac Gar Fac Gar Fac Gar Fac Gar Fac Was Fac Gar Total Allies 41 | . . . 5 1 2 . 10 . 4 . . . 2 . 6 . 9 1 . . 1 . . Largest Group 7 | . . . 4 1 2 . 7 5 4 . . . 2 . 4 2 4 1 . . 1 . . Highest-Rated Group 245 | . . . 40 10 70 . 154 106 96 . . . 56 . 245 141 132 21 . . 31 . . Highest-Rated Ally 95 | . . . 10 10 39 . 57 31 24 . . . 31 . 95 95 62 21 . . 31 . . Initial Warlord ECA Mod 64 | . . . . . . 12 12 21 21 33 33 33 33 45 45 53 53 59 59 64 64 64 64 Total Orders . | . . . . . . . . . . . . . . . . . . . . . . . . Ally Attacks 318 | . . . 22 . 18 . 49 33 24 . . . 14 . 70 9 71 2 . . 6 . . Total Damage 7295 | . . . 453 . 141 . 1020 612 624 . . . 287 . 2332 487 1230 49 . . 60 . . Kills 64 | . . . 6 . 1 . 7 4 10 . . . 1 . 21 5 9 . . . . . . Allies Corrupted . | . . . . . . . . . . . . . . . . . . . . . . . . Allies Melted . | . . . . . . . . . . . . . . . . . . . . . . . . X0-1V1 Amusement Gains 157 | . 3 . 15 . . 15 30 64 . 10 . . 6 5 9 . . . . . . . . Good Acts 182 | . 18 7 9 12 14 2 10 3 15 4 4 . 24 3 11 3 18 3 14 1 2 3 2 Bad Acts 151 | . 8 . 1 8 8 5 9 5 13 . 3 2 10 6 12 6 9 26 7 1 . 5 7 Intel | -11 -10 -10 -9 -9 -9 -8 -8 -8 -8 -7 -7 -7 -7 -7 -7 -7 -7 -7 -7 -6 -6 -6 -6 ------- Run | Yrd Mat Min Mat Sto Gar Mat Gar Mat Gar Fac Was Fac Gar Fac Gar Fac Gar Fac Gar Fac Was Fac Gar Active Infowar (turns) 1582 | 8 177 . . . . . . 639 . . . . . 2 . 2 1 . . 175 31 396 151 Optics 491 | . . . . . . . . . . . . . . . . . . . . . . 340 151 IFF 262 | . . . . . . . . . . . . . . . . . . . . 175 31 56 . Seismic 187 | 8 177 . . . . . . . . . . . . . . 2 . . . . . . . Machine Analysis 639 | . . . . . . . . 639 . . . . . . . . . . . . . . . Spoofing 1 | . . . . . . . . . . . . . . . . . 1 . . . . . . ECM 2 | . . . . . . . . . . . . . . 2 . . . . . . . . . Robot Analysis Total . | . . . . . . . . . . . . . . . . . . . . . . . . Derelict Logs Recovered 1 | . . 1 . . . . . . . . . . . . . . . . . . . . . Drone Launches . | . . . . . . . . . . . . . . . . . . . . . . . . Drone Recoveries . | . . . . . . . . . . . . . . . . . . . . . . . . Exploration | -11 -10 -10 -9 -9 -9 -8 -8 -8 -8 -7 -7 -7 -7 -7 -7 -7 -7 -7 -7 -6 -6 -6 -6 ------------- Run | Yrd Mat Min Mat Sto Gar Mat Gar Mat Gar Fac Was Fac Gar Fac Gar Fac Gar Fac Gar Fac Was Fac Gar Turns Passed 14280 | 52 905 309 696 757 999 157 2106 784 1298 113 67 35 1543 279 756 199 836 691 708 184 31 618 157 Spaces Moved 17780 | 55 1014 585 941 883 1390 353 1061 443 1643 268 185 114 1989 654 1013 585 1141 1910 607 152 60 622 112 Core 428 | 55 234 . 2 . . . 50 . 18 . . . 2 . . . . . . . . . 67 Treads 825 | . 1 . . 5 . . 684 120 . . . . . . . . . . . . . 15 . Legs 195 | . . . . . . . 100 . . . . . . . . . . . . 95 . . . Wheels 724 | . . . . . . . . 323 68 . . . . . . . . . . . . 288 45 Hover 403 | . . . . . . . . . 365 . . . . . . . . . . . . 38 . Flight 15205 | . 779 585 939 878 1390 353 227 . 1192 268 185 114 1987 654 1013 585 1141 1910 607 57 60 281 . Fastest Speed 21 | 50 37 37 34 28 28 29 32 130 29 29 29 29 26 26 23 23 21 26 26 49 29 29 50 Average Speed 43 | 50 48 37 36 31 29 29 126 138 41 29 29 29 33 28 23 23 34 26 29 93 29 70 76 Slowest Speed 300 | 50 300 37 120 160 105 32 240 160 130 29 29 29 200 189 97 23 90 28 165 120 29 160 115 Overloaded Moves . | . . . . . . . . . . . . . . . . . . . . . . . . Propulsion Burnouts . | . . . . . . . . . . . . . . . . . . . . . . . . Robots Hopped 62 | . 1 4 12 10 . 4 . . . . 1 1 1 . . 4 . 15 8 1 . . . Potential Cave-ins 2 | . . . . . . . . 2 . . . . . . . . . . . . . . . Cave-ins Triggered . | . . . . . . . . . . . . . . . . . . . . . . . . Exploration Rate (%) 56 | 4 97 93 77 92 90 31 93 47 91 7 74 5 93 23 98 17 72 59 69 6 63 22 41 Regions Visited 23 Branch Regions 2 Pre-discovered Areas 4 | . 3 1 . . . . . . . . . . . . . . . . . . . . . Known Exits Taken 9 | . . 1 . 1 . 1 . 1 . . . 1 . 1 . 1 . 1 . . . 1 . Unknown Exits Taken 3 | 1 1 . 1 . . . . . . . . . . . . . . . . . . . . Scrap Searched 1 | . . 1 . . . . . . . . . . . . . . . . . . . . . Spaces Dug 172 | . 3 . 9 . 12 1 31 4 . . . . 7 2 . . 24 9 46 . . 21 3 Terrain Destroyed 569 | . 3 . 9 . 161 1 59 6 22 . . . 7 2 . . 111 11 87 14 . 66 10 Melee 50 | . 3 . . . 7 1 6 4 . . . . 7 2 . . 6 9 . . . 2 3 Projectile 8 | . . . . . . . . 2 1 . . . . . . . 2 2 . . . 1 . AOE 511 | . . . 9 . 154 . 53 . 21 . . . . . . . 103 . 87 14 . 63 7 Terrain Rammed . | . . . . . . . . . . . . . . . . . . . . . . . . Walls Destroyed . | . . . . . . . . . . . . . . . . . . . . . . . . Machines Disabled . | . . . . . . . . . . . . . . . . . . . . . . . . Actions | -11 -10 -10 -9 -9 -9 -8 -8 -8 -8 -7 -7 -7 -7 -7 -7 -7 -7 -7 -7 -6 -6 -6 -6 --------- Run | Yrd Mat Min Mat Sto Gar Mat Gar Mat Gar Fac Was Fac Gar Fac Gar Fac Gar Fac Gar Fac Was Fac Gar Total 22143 | 69 1391 627 1130 1194 1723 386 1537 557 2089 289 197 114 2527 736 1362 633 1442 1999 1006 176 72 723 164 Wait 1555 | . 232 10 72 189 61 17 108 18 162 . 10 . 108 23 122 3 92 19 289 2 7 1 10 Move 17645 | 54 1011 576 916 863 1389 346 1060 443 1642 268 182 112 1986 653 1012 577 1139 1881 592 150 59 622 112 Hop 57 | . 1 4 12 9 . 3 . . . . 1 1 1 . . 4 . 14 6 1 . . . Pick Up 244 | 4 36 3 6 10 3 6 38 24 23 2 2 . 24 2 15 2 19 4 3 1 . 15 2 Fast Attach 155 | 5 2 . 9 7 7 . 16 1 11 . . . 25 9 9 1 13 7 13 2 . 17 1 Attach 119 | . 7 . 3 1 1 3 6 4 11 2 . . 21 3 3 . 15 4 11 5 1 10 8 Detach 60 | 1 5 . . . . . . 1 . . . . 14 4 1 . 12 1 9 5 1 2 4 Swap 276 | 1 14 4 20 25 36 1 44 8 21 3 . . 20 13 28 4 7 12 8 . . 6 1 Drop 345 | . 48 4 18 19 14 1 27 24 34 . 2 . 43 20 33 4 21 16 3 1 2 5 6 Fire 922 | 4 29 26 65 70 103 6 84 28 70 . . . 130 6 72 4 87 25 58 9 2 34 10 Melee 305 | . 5 . 9 1 41 3 66 4 22 14 . 1 72 3 5 4 17 16 5 . . 11 6 Ram 5 | . . . . . . . . 1 . . . . . . . . . . . . . . 4 Kick . | . . . . . . . . . . . . . . . . . . . . . . . . Crush 2 | . 1 . . . . . . 1 . . . . . . . . . . . . . . . Escape Stasis 335 | . . . . . 68 . 30 . 68 . . . 75 . 44 30 20 . . . . . . Rewire 41 | . . . . . . . 41 . . . . . . . . . . . . . . . . Trap 16 | . . . . . . . . . 16 . . . . . . . . . . . . . . Miscellaneous 61 | . . . . . . . 17 . 9 . . . 8 . 18 . . . 9 . . . . Route ------- -11/Scrapyard -10/Materials (discovered 5 exits: *Mat x3 / [*Min] / *Sub) -10/Mines (discovered 2 exits: *Mat x2) -9/Materials (discovered 5 exits: *Mat x2 / *Min x2 / *Sto) -9/Storage (discovered 3 exits: *Mat / Rec / Gar) -9/Garrison (discovered 3 exits: *Mat x3) -8/Materials -8/Garrison (discovered 3 exits: *Mat x3) -8/Materials (discovered 3 exits: *Fac x2 / Gar) -8/Garrison (discovered 3 exits: *Fac x3) -7/Factory (discovered 2 exits: Fac x2) -7/Waste -7/Factory (discovered 2 exits: *Fac / Gar) -7/Garrison (discovered 3 exits: *Fac x3) -7/Factory (discovered 3 exits: *Low x2 / Gar) -7/Garrison (discovered 3 exits: *Fac x3) -7/Factory (discovered 2 exits: Low / Gar) -7/Garrison (discovered 3 exits: *Fac x3) -7/Factory (discovered 6 exits: *Fac x3 / *Low x2 / Gar) -7/Garrison (discovered 3 exits: *Fac x3) -6/Factory -6/Waste -6/Factory (discovered 5 exits: *Low x2 / Ext x2 / Gar) -6/Garrison (discovered 3 exits: Fac x3) History --------- Turn | Location | Event 7 | -11/Scrapyard | Discovered new exit (range 15) 53 | -11/Scrapyard | Entered Materials 136 | -10/Materials | Central database locked down 298 | -10/Materials | Discovered new exit (range 16) 318 | -10/Materials | Build established: Mutant 420 | -10/Materials | Discovered new exit (range 16) 553 | -10/Materials | Derelicts attacked the area 586 | -10/Materials | Discovered new exit (range 15) 609 | -10/Materials | Identified exit to Materials 642 | -10/Materials | Identified exit to Subcaves 667 | -10/Materials | Learned location of Recycling (-9) 683 | -10/Materials | Learned location of 1 exit from Storage 699 | -10/Materials | Learned 4 Subcaves zone layouts 715 | -10/Materials | Learned location of 1 exit from Storage 741 | -10/Materials | Learned Storage terminal intel 763 | -10/Materials | Build established: Scavenger-Mutant 876 | -10/Materials | Prayed at D.C.S.S. Altar Unit 958 | -10/Materials | Entered Mines 958 | -10/Mines | Inventory capacity permanently improved by X0-1V1 (+1; -100 max core) 1003 | -10/Mines | Deemed a non-threat by the Exiles lab entrance 1033 | -10/Mines | Found a hidden stash of uninstalled traps 1045 | -10/Mines | X0-1V1 activates XOMVISION 1097 | -10/Mines | A weapon hastily lodged in a ceiling crevice suddenly fell to the ground 1125 | -10/Mines | Core integrity permanently improved by X0-1V1 (+300) 1135 | -10/Mines | Melee accuracy permanently improved by X0-1V1 (+7%; -70 max core) 1250 | -10/Mines | Found a damaged Exp. Sensor Array with a note attached 1254 | -10/Mines | Found Prototype Device 1254 | -10/Mines | Identified Exp. Sensor Array 1267 | -10/Mines | Entered Materials 1267 | -9/Materials | Evolved 2 slots: Propulsion x1, Weapon x1 1268 | -9/Materials | Identified exit to Materials 1299 | -9/Materials | Discovered new exit (range 13) 1359 | -9/Materials | X0-1V1 whisked you away to safety 1360 | -9/Materials | X0-1V1 sent you to a vault 1475 | -9/Materials | Lost 4 allies 1712 | -9/Materials | Identified exit to Mines 1712 | -9/Materials | X0-1V1 revealed exit location to -9/Mines 1742 | -9/Materials | X0-1V1 activates XOMVISION 1816 | -9/Materials | Repaired Flight Unit+ 1924 | -9/Materials | Discovered new exit (range 9) 1963 | -9/Materials | Entered Storage 1964 | -9/Storage | Identified exit to Recycling 1965 | -9/Storage | Loaded intel: 12 terminal locations 2008 | -9/Storage | Repaired Weight Redist. System 2010 | -9/Storage | X0-1V1 redirected Transport squads to designated parking area 2088 | -9/Storage | Garrison activated, responded to threat 2166 | -9/Storage | Destroyed 7 combat bots 2264 | -9/Storage | X0-1V1 foreshadows a heat wave 2269 | -9/Storage | X0-1V1 mutated your Weapon slot to Propulsion slot 2286 | -9/Storage | Core integrity restored by X0-1V1 (+100) 2336 | -9/Storage | Ambient heat levels rising (+10) 2406 | -9/Storage | X0-1V1 added 0b10 threat records associated with you (minor) 2443 | -9/Storage | Ambient heat levels rising (+10) 2487 | -9/Storage | Ambient heat levels falling (-10) 2528 | -9/Storage | X0-1V1 activates XOMVISION 2569 | -9/Storage | Ambient heat levels falling (-10) 2578 | -9/Storage | Identified exit to Garrison 2634 | -9/Storage | Repaired Imp. Flight Unit 2667 | -9/Storage | Repaired VTOL Module 2702 | -9/Storage | X0-1V1 announced a LAN party 2720 | -9/Storage | Entered Garrison 2724 | -9/Garrison | Triggered checkpoint 2755 | -9/Garrison | Build established: Sprinter 2817 | -9/Garrison | Triggered checkpoint 2836 | -9/Garrison | X0-1V1 destroyed Phase Generator 2836 | -9/Garrison | Phase Generator disabled 2869 | -9/Garrison | Garrison Relay disabled 2873 | -9/Garrison | Garrison Relay disabled 2884 | -9/Garrison | X0-1V1 sent you into danger 2911 | -9/Garrison | X0-1V1 revealed exit location to -8/Materials 2990 | -9/Garrison | Triggered checkpoint 3029 | -9/Garrison | X0-1V1 sent hostile G-34 Mercenary (x3) 3041 | -9/Garrison | Discovered exit to Materials (range 12) 3079 | -9/Garrison | Triggered checkpoint 3136 | -9/Garrison | Garrison Relay disabled 3197 | -9/Garrison | X0-1V1 vaporized surrounding terrain (radius 17) 3198 | -9/Garrison | X0-1V1 mutated your Propulsion slot to Power slot 3216 | -9/Garrison | Triggered checkpoint 3272 | -9/Garrison | Spotted B-75 Beast 3276 | -9/Garrison | Garrison Relay disabled 3285 | -9/Garrison | Triggered checkpoint 3306 | -9/Garrison | X0-1V1 revealed exit location to -8/Materials 3307 | -9/Garrison | X0-1V1 activates XOMVISION 3365 | -9/Garrison | Rescued a captive Derelict 3366 | -9/Garrison | Rescued a captive Derelict 3387 | -9/Garrison | X0-1V1 activates XOMVISION 3394 | -9/Garrison | Garrison Relay disabled 3419 | -9/Garrison | Learned Materials security intel 3503 | -9/Garrison | Triggered checkpoint 3618 | -9/Garrison | X0-1V1 activates XOMVISION 3635 | -9/Garrison | X0-1V1 sent you into danger 3639 | -9/Garrison | Triggered checkpoint 3643 | -9/Garrison | Garrison Relay disabled 3719 | -9/Garrison | Entered Materials 3719 | -8/Materials | Evolved 2 slots: Propulsion x1, Weapon x1 3760 | -8/Materials | Build established: Scavenger-Sprinter 3864 | -8/Materials | X0-1V1 upgraded hostiles (x1) 3876 | -8/Materials | Identified exit to Garrison 3876 | -8/Materials | Entered Garrison 3895 | -8/Garrison | Lost 3 parts (1p1n1u) 3926 | -8/Garrison | Garrison Relay disabled 3929 | -8/Garrison | Triggered checkpoint 4090 | -8/Garrison | X0-1V1 vaporized surrounding terrain (radius 22) 4096 | -8/Garrison | Triggered checkpoint 4165 | -8/Garrison | System corruption reached 10% 4177 | -8/Garrison | Lost 5 parts (1n4w) 4327 | -8/Garrison | Triggered checkpoint 4493 | -8/Garrison | Build established: Scavenger-Gunner 4552 | -8/Garrison | Discovered new exit (range 12) 4571 | -8/Garrison | Garrison Relay disabled 4840 | -8/Garrison | Triggered checkpoint 4941 | -8/Garrison | Lost 3 parts (1n2w) 5001 | -8/Garrison | Garrison Relay disabled 5019 | -8/Garrison | X0-1V1 sent allied Chaos Knight (x1) 5088 | -8/Garrison | Core integrity fell below 50% 5182 | -8/Garrison | Phase Generator disabled 5297 | -8/Garrison | Discovered new exit (range 9) 5351 | -8/Garrison | Rescued a captive Derelict 5363 | -8/Garrison | Rescued a captive Derelict 5698 | -8/Garrison | Triggered checkpoint 5714 | -8/Garrison | Build established: Scavenger-Mutant 5734 | -8/Garrison | Triggered checkpoint 5780 | -8/Garrison | Garrison Relay disabled 5847 | -8/Garrison | Triggered checkpoint 5859 | -8/Garrison | Discovered new exit (range 15) 5878 | -8/Garrison | Identified exit to Materials 5939 | -8/Garrison | Core integrity restored by X0-1V1 (+197) 5982 | -8/Garrison | Entered Materials 5982 | -8/Materials | Accompanied by 5 allies 6019 | -8/Materials | Identified exit to Factory 6019 | -8/Materials | X0-1V1 revealed exit location to -7/Factory 6117 | -8/Materials | X0-1V1 sent you to a vault 6165 | -8/Materials | X0-1V1 released a cloud of subatomizers 6170 | -8/Materials | X0-1V1 sent you into danger 6358 | -8/Materials | Build established: Scavenger-Skirmisher 6482 | -8/Materials | Discovered exit to Factory (range 4) 6672 | -8/Materials | Sterilization system engaged 6672 | -8/Materials | Non-combat units ordered to evacuate 6766 | -8/Materials | Identified exit to Garrison 6766 | -8/Materials | Entered Garrison 6918 | -8/Garrison | Triggered checkpoint 6928 | -8/Garrison | Garrison Relay disabled 6965 | -8/Garrison | Phase Generator disabled 7028 | -8/Garrison | Triggered checkpoint 7035 | -8/Garrison | Triggered checkpoint 7049 | -8/Garrison | X0-1V1 revealed exit location to -7/Factory 7055 | -8/Garrison | Core integrity restored by X0-1V1 (+115) 7088 | -8/Garrison | Garrison Relay disabled 7104 | -8/Garrison | X0-1V1 revealed exit location to -7/Factory 7151 | -8/Garrison | X0-1V1 sent you into danger 7152 | -8/Garrison | Triggered checkpoint 7174 | -8/Garrison | Triggered checkpoint 7219 | -8/Garrison | Core integrity fell below 20% 7233 | -8/Garrison | Lost 11 parts (1p4n6w) 7250 | -8/Garrison | Destroyed 12 combat bots 7299 | -8/Garrison | X0-1V1 revealed exit location to -7/Factory 7489 | -8/Garrison | X0-1V1 mutated your Propulsion slot to Utility slot 7519 | -8/Garrison | Garrison Relay disabled 7543 | -8/Garrison | X0-1V1 sent you into danger 7609 | -8/Garrison | Garrison Relay disabled 7644 | -8/Garrison | X0-1V1 rewrote Shotgunner 3f IFF filter 7723 | -8/Garrison | Triggered checkpoint 7889 | -8/Garrison | Garrison Relay disabled 7894 | -8/Garrison | Core integrity restored by X0-1V1 (+190) 7950 | -8/Garrison | Build established: Scavenger-Sprinter 8003 | -8/Garrison | Triggered checkpoint 8055 | -8/Garrison | Garrison Relay disabled 8064 | -8/Garrison | Entered Factory 8064 | -7/Factory | Evolved 2 slots: Propulsion x1, Weapon x1 8124 | -7/Factory | Identified exit to Factory 8124 | -7/Factory | X0-1V1 revealed exit location to -6/Factory 8160 | -7/Factory | X0-1V1 revealed exit location to -6/Factory 8177 | -7/Factory | Sucked down chute 8177 | -7/Factory | Entered Waste 8179 | -7/Waste | Found Broken Imp. Powered Armor 8187 | -7/Waste | Spotted C-40 Crusher 8213 | -7/Waste | X0-1V1 reactivated EMP system 8223 | -7/Waste | Spotted C-40 Crusher 8224 | -7/Waste | EMP discharged 8224 | -7/Waste | Spotted C-40 Crusher 8226 | -7/Waste | Spotted C-40 Crusher 8235 | -7/Waste | Spotted C-40 Crusher 8239 | -7/Waste | Spotted C-40 Crusher 8241 | -7/Waste | Discovered new exit (range 10) 8244 | -7/Waste | Entered Factory 8258 | -7/Factory | X0-1V1 sent hostile G-47 Trooper (x4) 8263 | -7/Factory | Discovered exit to Factory (range 8) 8279 | -7/Factory | Identified exit to Garrison 8279 | -7/Factory | Entered Garrison 8288 | -7/Garrison | Triggered checkpoint 8289 | -7/Garrison | Triggered checkpoint 8348 | -7/Garrison | Garrison Relay disabled 8350 | -7/Garrison | Triggered checkpoint 8363 | -7/Garrison | System corruption reached 10% 8379 | -7/Garrison | Identified exit to Factory 8379 | -7/Garrison | X0-1V1 revealed exit location to -7/Factory 8392 | -7/Garrison | X0-1V1 activates XOMVISION 8454 | -7/Garrison | X0-1V1 mutated your Utility slot to Weapon slot 8463 | -7/Garrison | Triggered checkpoint 8511 | -7/Garrison | X0-1V1 destroyed Phase Generator 8511 | -7/Garrison | Phase Generator disabled 8587 | -7/Garrison | Triggered checkpoint 8646 | -7/Garrison | X0-1V1 activates XOMVISION 8784 | -7/Garrison | Discovered exit to Factory (range 10) 8788 | -7/Garrison | Triggered checkpoint 8799 | -7/Garrison | Weapon slot count temporarily expanded by X0-1V1 (+1) 8823 | -7/Garrison | X0-1V1 activates XOMVISION 8838 | -7/Garrison | Garrison Relay disabled 8924 | -7/Garrison | Garrison Relay disabled 9051 | -7/Garrison | Rescued a captive Derelict 9053 | -7/Garrison | Rescued a captive Derelict 9084 | -7/Garrison | Triggered checkpoint 9277 | -7/Garrison | Lost 7 parts (1p5n1w) 9339 | -7/Garrison | X0-1V1 vaporized surrounding terrain (radius 16) 9431 | -7/Garrison | Core integrity restored by X0-1V1 (+149) 9442 | -7/Garrison | X0-1V1 activates XOMVISION 9487 | -7/Garrison | Triggered checkpoint 9512 | -7/Garrison | Triggered checkpoint 9531 | -7/Garrison | Garrison Relay disabled 9562 | -7/Garrison | Triggered checkpoint 9603 | -7/Garrison | Garrison Relay disabled 9652 | -7/Garrison | X0-1V1 activates XOMVISION 9822 | -7/Garrison | Entered Factory 9831 | -7/Factory | Discovered new exit (range 13) 9840 | -7/Factory | X0-1V1 enhanced Transport squad support 9840 | -7/Factory | X0-1V1 sent you to a vault 9848 | -7/Factory | Found Prototype Device 9848 | -7/Factory | Identified Skeleton Box 9897 | -7/Factory | X0-1V1 vaporized surrounding terrain (radius 21) 10089 | -7/Factory | Discovered new exit (range 6) 10100 | -7/Factory | Identified exit to Garrison 10101 | -7/Factory | Entered Garrison 10105 | -7/Garrison | X0-1V1 sent you into danger 10151 | -7/Garrison | Found embedded Infiltrators 10153 | -7/Garrison | Triggered checkpoint 10164 | -7/Garrison | X0-1V1 mutated your Utility slot to Weapon slot 10188 | -7/Garrison | Phase Generator disabled 10209 | -7/Garrison | X0-1V1 vaporized surrounding terrain (radius 19) 10209 | -7/Garrison | Rescued a captive Derelict 10216 | -7/Garrison | Rescued a captive Derelict 10229 | -7/Garrison | X0-1V1 mutated your Weapon slot to Propulsion slot 10273 | -7/Garrison | Garrison Relay disabled 10337 | -7/Garrison | Triggered checkpoint 10342 | -7/Garrison | Triggered checkpoint 10384 | -7/Garrison | Discovered new exit (range 13) 10439 | -7/Garrison | Garrison Relay disabled 10443 | -7/Garrison | Triggered checkpoint 10474 | -7/Garrison | X0-1V1 sent you into danger 10525 | -7/Garrison | X0-1V1 upgraded ally (x2) 10556 | -7/Garrison | X0-1V1 activates XOMVISION 10596 | -7/Garrison | Triggered checkpoint 10640 | -7/Garrison | Discovered new exit (range 10) 10645 | -7/Garrison | Triggered checkpoint 10678 | -7/Garrison | Garrison Relay disabled 10682 | -7/Garrison | X0-1V1 sent you into danger 10768 | -7/Garrison | X0-1V1 activates XOMVISION 10769 | -7/Garrison | Triggered checkpoint 10770 | -7/Garrison | Garrison Relay disabled 10778 | -7/Garrison | Destroyed 8 combat bots 10798 | -7/Garrison | Discovered new exit (range 12) 10857 | -7/Garrison | Entered Factory 10857 | -7/Factory | Accompanied by 2 allies 10859 | -7/Factory | X0-1V1 activates XOMVISION 10906 | -7/Factory | Central database locked down 10906 | -7/Factory | Watched by a mysterious "MATRIX" hacker 10929 | -7/Factory | X0-1V1 enhanced Transport squad support 10945 | -7/Factory | X0-1V1 added 0b10 threat records associated with you (considerable) 11017 | -7/Factory | Identified exit to Lower Caves 11017 | -7/Factory | X0-1V1 revealed exit location to -7/Lower Caves 11036 | -7/Factory | X0-1V1 added 0b10 threat records associated with you (considerable) 11056 | -7/Factory | Identified exit to Garrison 11056 | -7/Factory | Entered Garrison 11094 | -7/Garrison | X0-1V1 sent allied Scrapper (x4) 11172 | -7/Garrison | Lost 4 allies 11173 | -7/Garrison | Garrison Relay disabled 11214 | -7/Garrison | X0-1V1 destroyed Phase Generator 11214 | -7/Garrison | Phase Generator disabled 11217 | -7/Garrison | X0-1V1 activates XOMVISION 11261 | -7/Garrison | Identified exit to Factory 11261 | -7/Garrison | X0-1V1 revealed exit location to -7/Factory 11270 | -7/Garrison | Triggered checkpoint 11273 | -7/Garrison | X0-1V1 mutated your Propulsion slot to Weapon slot 11308 | -7/Garrison | X0-1V1 sent hostile S-27 Virus (x5) 11355 | -7/Garrison | Lost 3 parts (1p2w) 11358 | -7/Garrison | X0-1V1 vaporized surrounding terrain (radius 23) 11359 | -7/Garrison | Triggered checkpoint 11390 | -7/Garrison | Destroyed 11 combat bots 11392 | -7/Garrison | Garrison Relay disabled 11413 | -7/Garrison | Weapon slot count temporarily expanded by X0-1V1 (+2) 11512 | -7/Garrison | X0-1V1 sent hostile H-55 Commando (x2) 11513 | -7/Garrison | Core integrity fell below 50% 11531 | -7/Garrison | Core integrity restored by X0-1V1 (+174) 11537 | -7/Garrison | Discovered exit to Factory (range 14) 11545 | -7/Garrison | Found embedded Infiltrators 11550 | -7/Garrison | Triggered checkpoint 11567 | -7/Garrison | Core integrity restored by X0-1V1 (+174) 11612 | -7/Garrison | X0-1V1 sent allied Scrapper (x3) 11659 | -7/Garrison | Garrison Relay disabled 11702 | -7/Garrison | Triggered checkpoint 11775 | -7/Garrison | X0-1V1 activates XOMVISION 11788 | -7/Garrison | Triggered checkpoint 11796 | -7/Garrison | Attempted to access garrison exit controls, blocked by remote lockdown 11851 | -7/Garrison | X0-1V1 revealed exit location to -7/Factory 11892 | -7/Garrison | Entered Factory 11940 | -7/Factory | X0-1V1 sent you into danger 12011 | -7/Factory | X0-1V1 sent you into danger 12195 | -7/Factory | X0-1V1 sent hostile D-53 Grenadier (x1) 12271 | -7/Factory | X0-1V1 enhanced Transport squad support 12292 | -7/Factory | First assault squad dispatched 12343 | -7/Factory | Discovered exit to Factory (range 15) 12398 | -7/Factory | X0-1V1 redirected Transport squads to designated parking area 12459 | -7/Factory | X0-1V1 sent hostile H-55 Commando (x3) 12463 | -7/Factory | Discovered exit to Factory (range 11) 12472 | -7/Factory | Discovered exit to Factory (range 16) 12472 | -7/Factory | X0-1V1 mutated your Weapon slot to Utility slot 12478 | -7/Factory | Build established: Sprinter 12498 | -7/Factory | X0-1V1 sent hostile G-47 Trooper (x5) 12512 | -7/Factory | Central database locked down 12565 | -7/Factory | X0-1V1 turns hostiles against one another 12583 | -7/Factory | Identified exit to Garrison 12583 | -7/Factory | Entered Garrison 12597 | -7/Garrison | X0-1V1 revealed exit location to -6/Factory 12612 | -7/Garrison | Phase Generator disabled 12652 | -7/Garrison | Triggered checkpoint 12659 | -7/Garrison | X0-1V1 whisked you away to safety 12692 | -7/Garrison | Discovered exit to Factory (range 42) 12692 | -7/Garrison | Discovered exit to Factory (range 12) 12692 | -7/Garrison | Discovered exit to Factory (range 68) 12705 | -7/Garrison | Garrison Relay disabled 12715 | -7/Garrison | Lost 3 parts (1p2w) 12746 | -7/Garrison | Core integrity restored by X0-1V1 (+174) 12789 | -7/Garrison | X0-1V1 sent hostile Y-45 Defender (x1) 12823 | -7/Garrison | Lost 7 parts (1p2n1u3w) 12824 | -7/Garrison | X0-1V1 upgraded hostiles (x2) 12827 | -7/Garrison | Garrison Relay disabled 12869 | -7/Garrison | X0-1V1 mutated your Weapon slot to Propulsion slot 12875 | -7/Garrison | Destroyed 8 combat bots 12880 | -7/Garrison | Lost 5 parts (3n1u1w) 12887 | -7/Garrison | X0-1V1 whisked you away to safety 12980 | -7/Garrison | X0-1V1 whisked you away to safety 12984 | -7/Garrison | Learned Factory security intel 13051 | -7/Garrison | Core integrity restored by X0-1V1 (+149) 13278 | -7/Garrison | X0-1V1 sent you into danger 13291 | -7/Garrison | Entered Factory 13291 | -6/Factory | Evolved 2 slots: Utility x2 13475 | -6/Factory | Manually triggered Chute Trap 13475 | -6/Factory | Sucked down chute 13475 | -6/Factory | Entered Waste 13476 | -6/Waste | Met a frightened Derelict 13479 | -6/Waste | Spotted C-40 Crusher 13480 | -6/Waste | Spotted C-40 Crusher 13482 | -6/Waste | Spotted C-40 Crusher 13490 | -6/Waste | EMP discharged 13492 | -6/Waste | Spotted C-40 Crusher 13494 | -6/Waste | Spotted C-40 Crusher 13494 | -6/Waste | Discovered new exit (range 16) 13506 | -6/Waste | Entered Factory 13554 | -6/Factory | Discovered new exit (range 15) 13566 | -6/Factory | System corruption reached 10% 13695 | -6/Factory | Lost 4 parts (3n1u) 13796 | -6/Factory | Identified exit to Lower Caves 13796 | -6/Factory | Identified exit to Extension 13820 | -6/Factory | Hvy. Machine Gun reconfigured into Item Mimic 14039 | -6/Factory | Core integrity restored by X0-1V1 (+186) 14124 | -6/Factory | Identified exit to Garrison 14124 | -6/Factory | Entered Garrison 14153 | -6/Garrison | Lost 7 parts (2p2n3w) 14186 | -6/Garrison | Triggered checkpoint 14215 | -6/Garrison | X0-1V1 sent you into danger 14218 | -6/Garrison | Triggered checkpoint 14218 | -6/Garrison | Triggered checkpoint 14218 | -6/Garrison | Triggered checkpoint 14224 | -6/Garrison | Triggered checkpoint 14226 | -6/Garrison | Core integrity fell below 50% 14244 | -6/Garrison | Identified exit to Factory 14252 | -6/Garrison | X0-1V1 whisked you away to safety 14257 | -6/Garrison | Lost 6 parts (3n1u2w) 14262 | -6/Garrison | Found Launcher Loader 14268 | -6/Garrison | Triggered checkpoint 14271 | -6/Garrison | Core integrity fell below 20% 14280 | -6/Garrison | X0-1V1 mutated your Propulsion slot to Utility slot 14281 | -6/Garrison | Destroyed by S-27 Virus with Autogun Last Messages --------------- 14262_ Acquired Launcher Loader. 14263_ Triggered Alarm Trap. 14263_ An alarm sounds. 14267_ X0-1V1: "Use it or lose it, I always say." 14267_ Adv. Heat Sink fused. 14268_ Beams of light sweep through the air. An alarm sounds. 14269_ Hvy. Rocket Launcher destroyed. 14274_ Slammed into S-27 Virus. 14274_ Destabilizing: System interference. 14274_ Adv. Heat Sink temporarily disabled. 14274_ X0-1V1's Piety Tracker temporarily disabled. 14275_ Slammed into S-27 Virus. 14275_ Destabilizing: System interference. 14275_ Enh. Optical Array temporarily disabled. 14276_ Slammed into S-27 Virus. 14278_ Triggered Alarm Trap. 14278_ An alarm sounds. 14280_ X0-1V1: "Evolution hits right when you least expect it." (Propulsion slot mutated into Utility slot) 14281_ X0-1V1 chortles! Map ----- +----------------------------------------------------+ | ?????????????????????????????????????????????????# | | ?????????????????????????????????????????????????" | | ????????????????????????????????????????????????? | | ????????????????????????????????????????????????? | | ????????????????????????????????????????????????? | | ????????????????????????????????????????#####???? | | ????????????????????????????????????????? #???? | | ????????????????????????????????????????? #???? | | ???????????????????????????????###?????### #???? | | ???????????????????????????????# ?????# #???# | | ???????????????????????????????# ?????# #???# | | ???????????????????????????????# ?????# ##???# | | ???????????????????????????????# #?????## ##????# | | ???????????????????????????????# #?????## ##????# | | ???????????????????????????????# #?????#! !#????# | | ???????????????????????????????# #?????#! !#????# | | ???????????????????????????????# #?????#! !#????# | | ?????????????????????????????### #?????#! #????# | | ?????????????????????????????# ######## ##????# | | ?????????????????????????????# #?????# | | ?????????????????????????????# ##########?????# | | ?????????????????????????????### #??????????????# | | ???????????????????????????????# #??????????????# | | ?????????????????????????####### #??????????????# | | ???????????????